bitfinex/quotes_ETHUSD_20241104
["timestamp","ask_amount","ask_price","bid_price","bid_amount"]
[1730743895621,0.09789049,2427.5,2427.2,4.11995]
[1730743895920,0.09789049,2427.5,2427.3,0.13097013]
[1730743896095,0.09789049,2427.5,2427.2,5.024813]
[1730743896292,0.09789049,2427.5,2427.3,0.13096372]
[1730743896533,4.21735049,2427.5,2427.2,0.904863]
[1730743897526,0.09789049,2427.5,2427.1,0.8084]
[1730743897708,4.11971,2427.4,2427.1,0.8084]
[1730743898084,0.09726,2427.3,2427.1,0.8084]
[1730743898285,0.09726,2427.3,2427.0,4.12023]
[1730743898697,0.09726,2427.3,2427.2,4.11997]
[1730743899035,4.11914,2427.7,2427.3,4.11975]
[1730743899915,4.41269,2427.8,2427.4,4.11956]
[1730743900220,4.1192,2427.7,2427.3,4.11971]
[1730743900412,4.1192,2427.7,2427.3,4.11969]
[1730743901525,0.2937,2427.8,2427.3,4.11969]
[1730743901683,4.41273,2427.8,2427.4,0.5353487]
[1730743902084,4.41273,2427.8,2427.4,4.6549487]
[1730743902728,4.41273,2427.8,2427.4,0.5353487]
[1730743902729,4.11912,2427.7,2427.4,0.5353487]
[1730743903311,4.41273,2427.8,2427.4,0.5353487]
[1730743903501,4.11903,2427.8,2427.5,0.46549887]
[1730743903705,4.11886,2427.9,2427.5,4.58487887]
[1730743904627,4.11895,2427.8,2427.5,4.58487887]
[1730743905126,4.11895,2427.8,2427.5,0.46549887]
[1730743906239,4.11886,2427.9,2427.2,4.94163]
[1730743906240,4.11936,2427.6,2427.2,4.94176]
[1730743906545,4.11967,2427.4,2427.0,4.9043]
[1730743907626,0.09651523,2427.3,2427.0,9.02452]
[1730743907829,0.09651523,2427.3,2427.0,4.9043]
[1730743908045,0.09651523,2427.3,2427.1,0.49043]
[1730743908257,4.11956,2427.5,2427.1,0.49043]
[1730743908397,0.09649283,2427.2,2427.1,0.49043]
[1730743908596,4.11966,2427.4,2427.1,0.49043]
[1730743908794,0.09649283,2427.3,2427.0,4.9043]
[1730743909205,4.21636283,2427.3,2427.0,0.7841]
[1730743909622,0.09649283,2427.3,2427.0,0.7841]
[1730743909837,0.09649283,2427.3,2427.0,4.90437]
[1730743910034,0.09649283,2427.3,2427.1,4.12007]
[1730743910241,0.09649283,2427.3,2427.2,0.902444]
[1730743910536,4.11948,2427.5,2427.1,4.12007]
[1730743910746,0.09641816,2427.3,2427.0,0.7841]
[1730743911039,0.09641816,2427.2,2427.0,4.90438]
[1730743911425,4.11973,2427.4,2427.0,4.90438]
[1730743911628,0.09641816,2427.1,2427.0,0.7841]
[1730743911948,0.09641816,2427.1,2426.6,4.12091]
[1730743911949,4.12025,2427.1,2426.6,4.12091]
[1730743912116,4.12031,2427.0,2426.6,4.12091]
[1730743912438,0.09395563,2426.9,2426.6,4.12091]
[1730743912754,0.09395563,2426.9,2426.7,0.13124341]
[1730743913040,0.09395563,2426.9,2426.8,0.13123473]
[1730743913647,0.09395563,2426.9,2426.8,0.13134139]
[1730743913939,0.09395563,2426.9,2426.8,0.13134535]
[1730743914142,0.09395563,2426.9,2426.8,0.1313437]
[1730743914301,0.09395563,2426.9,2426.6,0.21018042]
[1730743914302,4.21453563,2426.9,2426.6,0.21018042]
[1730743914498,4.12072,2426.8,2426.7,0.13135113]
[1730743915040,4.21455613,2426.8,2426.7,0.13135113]
[1730743915230,0.09383613,2426.8,2426.7,0.13135113]
[1730743916478,0.09383613,2426.8,2426.5,4.12111]
[1730743916666,0.09383613,2426.8,2426.6,0.13136763]
[1730743916867,0.09383613,2426.8,2426.7,0.13136763]
[1730743918074,4.21448613,2426.8,2426.7,0.13136763]
[1730743918479,0.09383613,2426.8,2426.7,0.13136763]
[1730743919246,4.21448613,2426.8,2426.7,0.13136763]
[1730743919443,4.21448613,2426.8,2426.7,5.00338763]
[1730743919444,0.09383613,2426.8,2426.7,5.00338763]
[1730743919672,0.09383613,2426.8,2426.7,5.52473629]
[1730743919840,4.12012,2427.2,2426.7,5.52473629]
[1730743920044,4.12012,2427.2,2426.8,0.13130382]
[1730743920347,4.21085007,2427.1,2426.7,1.27254866]
[1730743920543,4.21085007,2427.1,2426.7,0.7512]
[1730743920774,4.12069,2426.8,2426.6,0.21013917]
[1730743920990,4.12108,2426.6,2426.4,0.21014583]
[1730743921172,4.12108,2426.6,2426.5,0.13136513]
[1730743921494,4.41425,2426.9,2426.5,0.13136513]
[1730743921495,4.41431,2426.9,2426.5,0.13136513]
[1730743921803,4.12077,2426.8,2426.3,4.33163583]
[1730743921949,0.2937,2426.9,2426.4,0.13137162]
[1730743921950,4.12108,2426.6,2426.4,0.13137162]
[1730743922153,4.12108,2426.6,2426.5,0.13137162]
[1730743922371,4.2116475,2426.6,2426.5,0.13137162]
[1730743922580,4.2116475,2426.6,2426.3,0.21014583]
[1730743922767,4.2116475,2426.6,2426.2,5.01664016]
[1730743922967,4.41486,2426.5,2426.3,0.13135815]
[1730743923288,4.41486,2426.5,2426.2,5.01664016]
[1730743923289,4.12133,2426.4,2426.2,5.01664016]
[1730743923453,4.21188248,2426.4,2426.3,0.1313485]
[1730743923650,0.09055248,2426.4,2426.2,5.01664016]
[1730743923946,0.09055248,2426.4,2426.3,0.13134192]
[1730743924229,4.12083,2426.7,2426.3,4.25282192]
[1730743924540,4.12083,2426.7,2426.3,4.12148]
[1730743924541,0.09049739,2426.6,2426.3,4.12148]
[1730743924831,4.21164739,2426.6,2426.2,6.30512874]
[1730743925034,0.09049739,2426.6,2426.3,0.13133194]
[1730743925195,0.09049739,2426.6,2426.4,0.13133194]
[1730743925396,0.09049739,2426.6,2426.5,0.13131774]
[1730743925603,4.41422,2426.9,2426.5,4.25248296]
[1730743925804,0.09049238,2426.8,2426.6,0.13132116]
[1730743925994,4.12034,2427.0,2426.6,0.96869528]
[1730743926189,0.09044732,2426.9,2426.6,5.74769412]
[1730743926391,0.09044732,2426.9,2426.7,0.13133018]
[1730743926595,0.09044732,2426.9,2426.6,5.74769412]
[1730743926811,4.12031,2427.0,2426.7,0.13133116]
[1730743927099,0.09049488,2426.9,2426.6,5.74769412]
[1730743927318,0.09049488,2426.9,2426.7,0.1313508]
[1730743927648,0.09049488,2426.9,2426.8,4.12065]
[1730743927851,0.09049488,2426.9,2426.7,4.72967053]
[1730743928051,4.12003,2427.2,2426.8,4.12065]
[1730743928420,0.2937,2427.4,2426.9,4.12036]
[1730743928636,4.41347,2427.4,2426.8,4.12065]
[1730743928966,4.41347,2427.4,2427.0,4.8741]
[1730743929254,4.11974,2427.4,2427.0,4.8741]
[1730743929423,4.11982,2427.3,2427.0,0.7538]
[1730743930047,4.11974,2427.4,2427.0,4.8741]
[1730743930554,7.99558186,2427.6,2427.0,4.8741]
[1730743930555,4.11948,2427.5,2427.0,4.8741]
[1730743930751,4.11967,2427.4,2427.0,5.40880571]
[1730743930959,4.11967,2427.4,2427.0,5.40871571]
[1730743931562,8.23943,2427.4,2427.0,5.40871571]
[1730743931917,4.11946,2427.5,2427.1,4.1201]
[1730743932254,4.1197,2427.4,2427.0,1.28850571]
[1730743932415,4.1197,2427.4,2427.0,0.7538]
[1730743932857,4.1197,2427.4,2427.0,4.87407]
[1730743934120,4.1197,2427.4,2427.0,0.7538]
[1730743934419,4.11992,2427.3,2426.8,7.9136]
[1730743934616,4.12007,2427.2,2426.9,0.13136448]
[1730743934849,4.531912,2427.3,2426.9,4.12043]
[1730743934850,4.11988,2427.3,2426.9,4.12043]
[1730743935555,4.11975,2427.4,2426.9,4.12039]
[1730743935853,4.41301,2427.6,2427.2,4.11989]
[1730743936016,6.57072052,2427.8,2427.3,0.8309]
[1730743936216,4.11916,2427.7,2427.3,4.9506]
[1730743936413,4.4127,2427.8,2427.4,4.11958]
[1730743937061,4.11915,2427.7,2427.3,4.95069]
[1730743937422,4.4127,2427.8,2427.3,4.95069]
[1730743937423,0.09059752,2427.6,2427.3,4.95069]
[1730743937645,8.53177,2427.8,2427.3,4.95069]
[1730743937860,0.09059752,2427.5,2427.4,4.11963]
[1730743938157,4.119,2427.8,2427.4,5.026653]
[1730743938365,0.09059752,2427.5,2427.4,4.11963]
[1730743938542,4.119,2427.8,2427.4,4.11963]
[1730743938939,0.0875776,2427.7,2427.3,4.9506]
[1730743939277,8.23807,2427.8,2427.3,9.07032]
[1730743939441,0.0875776,2427.6,2427.3,9.07032]
[1730743939641,8.23806,2427.8,2427.3,9.07032]
[1730743939855,0.0875776,2427.5,2427.4,4.1196]
[1730743940066,4.11914,2427.7,2427.3,4.9506]
[1730743940574,0.0875776,2427.6,2427.3,4.9506]
[1730743941938,0.0875776,2427.6,2427.4,4.11952]
[1730743942144,4.11882,2427.9,2427.5,4.11946]
[1730743942371,0.0865876,2427.8,2427.5,4.11946]
[1730743942569,0.0865876,2427.8,2427.5,5.026378]
[1730743942768,8.53114,2428.0,2427.5,9.145698]
[1730743942769,4.41241,2428.0,2427.5,9.145698]
[1730743943077,0.08668767,2427.9,2427.7,4.11901]
[1730743943236,0.08668767,2427.9,2427.7,4.87281]
[1730743943440,0.0598272,2428.1,2427.7,4.87284]
[1730743943639,0.08668767,2428.0,2427.7,4.87284]
[1730743947040,5.33736316,2428.0,2427.5,4.11932]
[1730743947240,4.49901767,2428.0,2427.6,4.1192]
[1730743947475,4.20531767,2428.0,2427.6,4.1192]
[1730743948553,0.08668767,2428.0,2427.6,4.1192]
[1730743949736,0.08668767,2428.0,2427.7,4.11911]
[1730743949939,0.08668767,2428.0,2427.9,4.11878]
[1730743951466,0.08668767,2428.0,2427.8,4.90392]
[1730743952651,0.08668767,2428.0,2427.8,4.90385]
[1730743953272,0.08668767,2428.0,2427.8,0.785]
[1730743953478,4.11882,2427.9,2427.5,7.11939]
[1730743953871,0.08712301,2427.8,2427.5,7.11939]
[1730743954667,4.41245,2428.0,2427.6,4.11929]
[1730743955172,0.08712301,2427.9,2427.6,4.11929]
[1730743955385,4.20591301,2427.9,2427.5,7.11944]
[1730743956062,0.08712301,2427.9,2427.5,7.11944]
[1730743956263,0.08712301,2427.9,2427.6,0.13104992]
[1730743957197,4.20594301,2427.9,2427.5,4.11933]
[1730743957495,4.20594301,2427.9,2427.4,0.7816]
[1730743957496,0.08712301,2427.9,2427.7,4.11904]
[1730743957863,4.1783372,2428.1,2427.7,4.11904]
[1730743957864,8.2969072,2428.1,2427.7,4.11904]
[1730743958060,0.08710551,2427.8,2427.7,4.11904]
[1730743958284,8.2968872,2428.1,2427.7,4.94287]
[1730743958568,8.2968872,2428.1,2427.7,4.11904]
[1730743958770,0.08707049,2428.0,2427.7,4.11904]
[1730743960207,0.08707049,2428.0,2427.7,8.23808]
[1730743960371,0.08707049,2428.0,2427.7,4.11904]
[1730743960774,0.08707049,2428.0,2427.8,4.11894]
[1730743961638,0.08707049,2428.0,2427.7,4.11909]
[1730743962012,4.20575049,2428.0,2427.5,8.23861]
[1730743962218,0.08707049,2428.0,2427.6,4.25033746]
[1730743962553,0.08707049,2428.0,2427.7,4.11906]
[1730743962764,4.11882,2427.9,2427.5,4.11946]
[1730743963047,4.11921,2427.7,2427.2,4.93872]
[1730743963259,4.11921,2427.7,2427.3,0.34115971]
[1730743963471,4.11931,2427.6,2427.4,0.13120356]
[1730743963622,4.206398,2427.6,2427.2,5.14875346]
[1730743963951,4.206398,2427.6,2427.3,0.13125122]
[1730743964153,4.206398,2427.6,2427.4,0.13125122]
[1730743964352,4.206398,2427.6,2427.3,0.21003533]
[1730743964565,5.15451868,2427.6,2427.4,0.13129508]
[1730743964731,5.15451868,2427.6,2427.1,4.33018524]
[1730743964732,4.11946,2427.5,2427.1,4.33018524]
[1730743964919,0.2937,2427.4,2427.2,0.34143244]
[1730743965120,0.38072047,2427.4,2427.3,0.1313072]
[1730743965563,0.08702047,2427.4,2427.3,0.1313072]
[1730743965733,0.08702047,2427.4,2427.3,0.13136057]
[1730743965939,0.2937,2427.8,2427.3,4.69716837]
[1730743966163,0.08405,2427.4,2427.3,4.5658078]
[1730743966375,4.41268,2427.8,2427.4,4.11962]
[1730743966873,8.53177,2427.8,2427.5,0.13138658]
[1730743967080,4.41268,2427.8,2427.4,4.11962]
[1730743967251,4.41268,2427.8,2427.3,4.11978]
[1730743967441,4.1193,2427.6,2427.4,0.13141089]
[1730743967636,4.1193,2427.6,2427.1,4.12014]
[1730743967938,0.08406,2427.5,2427.3,4.11979]
[1730743968144,4.11916,2427.7,2427.3,4.11979]
[1730743968441,0.08407001,2427.6,2427.3,4.11979]
[1730743968868,0.08407001,2427.6,2427.4,0.13138032]
[1730743969071,0.08407001,2427.6,2427.4,4.11963]
[1730743969283,4.41282,2427.8,2427.4,4.11963]
[1730743969448,0.2937,2427.8,2427.5,4.25077075]
[1730743969648,4.41268,2427.8,2427.4,4.93102]
[1730743969853,4.41268,2427.8,2427.5,0.13138072]
[1730743970055,4.41268,2427.8,2427.4,4.93102]
[1730743970379,4.41268,2427.8,2427.5,0.13137742]
[1730743970679,4.41268,2427.8,2427.4,4.93102]
[1730743970842,4.11914,2427.7,2427.5,0.13139729]
[1730743971044,1.146848,2427.8,2427.2,4.9338]
[1730743971045,0.2937,2427.8,2427.2,4.9338]
[1730743971267,4.11913,2427.7,2427.3,4.46140406]
[1730743971455,4.41267,2427.8,2427.4,4.25095137]
[1730743971660,4.41267,2427.8,2427.4,4.11955]
[1730743971973,4.41267,2427.8,2427.5,0.13141732]
[1730743972153,4.41267,2427.8,2427.4,4.11955]
[1730743972353,4.41267,2427.8,2427.5,0.13140085]
[1730743972547,4.41267,2427.8,2427.4,4.11955]
[1730743972853,8.53178,2427.8,2427.5,0.1314047]
[1730743973053,8.53178,2427.8,2427.4,4.11955]
[1730743973262,4.1192,2427.7,2427.2,0.8139]
[1730743973462,4.1192,2427.7,2427.3,0.13142674]
[1730743973797,4.11915,2427.7,2427.4,0.13142674]
[1730743973943,4.11915,2427.7,2427.3,4.11971]
[1730743974144,4.11915,2427.7,2427.4,0.13143204]
[1730743974363,4.11915,2427.7,2427.3,4.33005506]
[1730743974570,8.23843,2427.7,2427.4,0.1314438]
[1730743974883,0.2937,2427.8,2427.2,4.93384]
[1730743975169,4.11916,2427.7,2427.3,4.46155765]
[1730743975378,4.11916,2427.7,2427.4,0.13143549]
[1730743975551,4.11916,2427.7,2427.3,4.11979]
[1730743975754,4.11916,2427.7,2427.4,0.13143707]
[1730743975954,4.11916,2427.7,2427.3,4.11979]
[1730743976261,4.11916,2427.7,2427.4,0.13144719]
[1730743976515,4.11916,2427.7,2427.2,4.93384]
[1730743976671,4.11916,2427.7,2427.2,6.64073865]
[1730743976856,4.11916,2427.7,2427.3,0.13142988]
[1730743977054,4.1193,2427.6,2427.4,0.13142988]
[1730743977253,4.1193,2427.6,2427.3,0.21034657]
[1730743977574,4.1193,2427.6,2427.4,0.13145387]
[1730743977753,4.1193,2427.6,2427.2,4.93384]
[1730743977955,4.1193,2427.6,2427.3,0.13144874]
[1730743978179,4.1193,2427.6,2427.4,0.13144874]
[1730743978376,4.1193,2427.6,2427.2,5.14419667]
[1730743978584,4.1193,2427.6,2427.3,0.13149332]
[1730743978767,0.2937,2427.8,2427.2,5.14422033]
[1730743978942,4.11915,2427.7,2427.3,0.13149246]
[1730743979147,4.1193,2427.6,2427.4,0.13149246]
[1730743979358,4.1193,2427.6,2427.2,5.14425652]
[1730743979580,4.1193,2427.6,2427.3,0.13148777]
[1730743979782,4.1193,2427.6,2427.4,0.13148777]
[1730743979948,4.1193,2427.6,2427.2,4.93384]
[1730743980149,4.1193,2427.6,2427.3,0.1314859]
[1730743980356,4.1193,2427.6,2427.2,4.11994]
[1730743980587,4.1193,2427.6,2427.3,0.13149176]
[1730743980795,4.11946,2427.5,2427.1,4.12004]
[1730743980951,4.11946,2427.5,2427.2,0.13149297]
[1730743981289,4.11933,2427.6,2427.3,0.13149297]
[1730743981602,4.11933,2427.6,2427.2,4.11987]
[1730743981760,4.11933,2427.6,2427.3,0.13146617]
[1730743981957,4.11933,2427.6,2427.2,4.11987]
[1730743982187,4.11931,2427.6,2427.3,0.13147856]
[1730743982384,0.08366247,2427.5,2427.4,0.13147856]
[1730743982584,4.11915,2427.7,2427.4,0.13148447]
[1730743982854,0.08366247,2427.5,2427.2,5.52748566]
[1730743983059,6.2795898,2427.9,2427.5,4.87018]
[1730743983302,6.77123296,2428.1,2427.7,4.11904]
[1730743983303,6.339077,2428.1,2427.7,4.11904]
[1730743983654,0.0598272,2428.1,2428.0,4.11861]
[1730743984020,0.0598272,2428.1,2428.0,4.25002315]
[1730743984196,0.0598272,2428.1,2428.0,5.18849262]
[1730743985756,0.0598272,2428.1,2428.0,5.05707947]
[1730743985961,0.0598272,2428.1,2428.0,5.18840483]
[1730743986158,0.0598272,2428.1,2428.0,5.18839858]
[1730743986758,0.0598272,2428.1,2428.0,0.93846947]
[1730743986956,0.0598272,2428.1,2427.9,4.92438]
[1730743987156,0.0598272,2428.1,2427.9,4.92428]
[1730743987495,0.0598272,2428.1,2428.0,4.2498581]
[1730743987669,0.0598272,2428.1,2428.0,4.11861]
[1730743988072,0.0598272,2428.1,2428.0,4.24986501]
[1730743988278,0.0598272,2428.1,2428.0,5.24964049]
[1730743988484,0.0598272,2428.1,2428.0,5.16727951]
[1730743990703,0.0598272,2428.1,2428.0,5.99287951]
[1730743991208,0.1431323,2428.1,2428.0,5.07546501]
[1730743991558,0.1431323,2428.1,2428.0,5.0757207]
[1730743991867,0.0598272,2428.1,2428.0,5.0757207]
[1730743992072,0.1431423,2428.1,2428.0,4.94421]
[1730743992777,0.1431423,2428.1,2427.7,7.9068]
[1730743992969,0.1431423,2428.1,2427.9,4.11877]
[1730743993180,0.1431423,2428.1,2428.0,4.11861]
[1730743993670,0.1431423,2428.1,2428.0,4.25008305]
[1730743993897,0.1431423,2428.1,2428.0,4.11861]
[1730743994094,0.1431423,2428.1,2428.0,4.25007462]
[1730743994296,0.1431423,2428.1,2428.0,5.71289446]
[1730743994297,0.0598272,2428.1,2428.0,5.71289446]
[1730743994507,0.14167348,2428.1,2428.0,5.71289446]
[1730743994708,0.14167348,2428.1,2428.0,5.84435589]
[1730743994709,0.0598272,2428.1,2428.0,5.84435589]
[1730743994910,0.0598272,2428.1,2428.0,8.84435589]
[1730743995602,0.0598272,2428.1,2428.0,9.05461629]
[1730743996210,0.0598272,2428.1,2428.0,8.84435589]
[1730743996511,0.0598272,2428.1,2428.0,8.71289446]
[1730743996686,0.0598272,2428.1,2428.0,9.60441631]
[1730743997005,0.0598272,2428.1,2428.0,9.6044046]
[1730743999830,0.0598272,2428.1,2428.0,9.0544046]
[1730744002341,0.0598272,2428.1,2428.0,8.84423285]
[1730744003410,0.14177848,2428.1,2428.0,8.84423285]
[1730744003735,0.0598272,2428.1,2428.0,8.84423285]
[1730744005367,0.0598272,2428.1,2428.0,9.05434326]
[1730744007131,0.0598272,2428.1,2428.0,8.71289446]
[1730744007330,0.0598272,2428.1,2428.0,9.05432555]
[1730744007571,0.0598272,2428.1,2428.0,9.05435118]
[1730744008731,0.0598272,2428.1,2428.0,9.60435118]
[1730744009236,0.0598272,2428.1,2428.0,9.05435118]
[1730744010654,0.0598272,2428.1,2428.0,8.71289446]
[1730744010995,0.0598272,2428.1,2428.0,9.05463429]
[1730744011958,0.14200596,2428.1,2428.0,9.05463429]
[1730744012145,0.0598272,2428.1,2428.0,9.05463429]
[1730744012339,0.0598272,2428.1,2428.0,8.29723429]
[1730744012543,0.0598272,2428.1,2428.0,7.46034983]
[1730744012743,0.14200596,2428.1,2428.0,7.46034983]
[1730744013280,0.0598272,2428.1,2428.0,7.46034983]
[1730744013488,0.141966,2428.1,2428.0,7.46034983]
[1730744014690,0.0598272,2428.1,2428.0,7.46034983]
[1730744014981,0.0598272,2428.1,2428.0,8.69869181]
[1730744015483,0.14192601,2428.1,2428.0,7.46034983]
[1730744016421,0.14192601,2428.1,2428.0,4.46034983]
[1730744016691,0.43562601,2428.1,2428.0,4.25003672]
[1730744016847,0.43562601,2428.1,2428.0,0.13142672]
[1730744017189,0.89100061,2428.1,2428.0,0.13142672]
[1730744017386,4.55406601,2428.1,2428.0,0.13142672]
[1730744017685,4.41235,2428.0,2427.5,4.11937]
[1730744017910,0.08202631,2427.9,2427.7,4.11911]
[1730744018214,0.08202631,2427.9,2427.8,0.13179615]
[1730744018215,4.20080631,2427.9,2427.8,0.13179615]
[1730744018413,4.20080631,2427.9,2427.1,0.7612]
[1730744018414,4.1192,2427.7,2427.1,0.7612]
[1730744018717,0.2937,2427.8,2427.2,4.46258564]
[1730744018718,4.49496131,2427.6,2427.2,4.46258564]
[1730744019006,4.11959,2427.5,2427.3,0.13182415]
[1730744019217,0.2937,2427.4,2427.2,0.211027]
[1730744019384,0.3755888,2427.4,2427.3,0.13176069]
[1730744019583,1.23703768,2427.4,2427.1,4.11997]
[1730744019793,0.3755888,2427.4,2427.2,0.1317697]
[1730744019997,0.3755888,2427.4,2427.2,4.11995]
[1730744020191,0.3755888,2427.4,2427.0,5.01498655]
[1730744020192,0.3755888,2427.4,2427.3,0.13175811]
[1730744020374,4.4952988,2427.4,2427.1,0.13167817]
[1730744020596,0.3755888,2427.4,2427.0,5.01498655]
[1730744020775,0.3755888,2427.4,2427.1,0.13169571]
[1730744020975,5.35680268,2427.4,2427.0,5.01498655]
[1730744021177,1.23706268,2427.4,2427.0,9.13527655]
[1730744021375,4.11981,2427.3,2427.0,5.01498655]
[1730744021915,0.2937,2427.1,2427.0,5.01498655]
[1730744022616,0.37540873,2427.1,2427.0,5.01498655]
[1730744023120,0.2937,2427.1,2427.0,9.13529655]
[1730744023277,0.2937,2427.1,2427.0,5.01498655]
[1730744023478,0.37251145,2427.1,2427.0,5.01498655]
[1730744023679,0.07881145,2427.1,2427.0,9.7610045]
[1730744023926,0.2937,2427.3,2427.0,9.7610045]
[1730744024214,0.2937,2427.3,2427.1,4.12009]
[1730744024420,0.2937,2427.5,2427.1,4.12]
[1730744024724,4.41324,2427.5,2427.0,9.91219655]
[1730744025389,4.11973,2427.4,2427.0,5.01498655]
[1730744025594,4.1198,2427.3,2427.0,5.01498655]
[1730744026230,4.11965,2427.4,2427.0,9.13527655]
[1730744026433,4.41324,2427.5,2427.0,9.13527655]
[1730744026785,4.11971,2427.4,2427.0,5.01498655]
[1730744026989,4.41324,2427.5,2427.0,9.13525655]
[1730744027527,0.07881395,2427.4,2427.0,9.13525655]
[1730744028295,0.07881395,2427.4,2427.1,4.12012]
[1730744029921,0.07881395,2427.4,2427.2,4.11995]
[1730744030120,0.07881395,2427.4,2427.1,4.12012]
[1730744030320,0.07881395,2427.4,2427.2,4.11995]
[1730744030689,4.41285,2427.7,2427.2,4.11995]
[1730744030890,4.19813412,2427.6,2427.2,4.11995]
[1730744031793,0.07884412,2427.6,2427.2,4.11995]
[1730744032031,0.07884412,2427.6,2427.3,4.1198]
[1730744032524,0.07884412,2427.6,2427.3,4.95256]
[1730744032828,0.07884412,2427.6,2427.2,4.11987]
[1730744033326,0.07884412,2427.6,2427.4,4.11956]
[1730744036304,0.07884412,2427.6,2427.4,4.11952]
[1730744036484,0.2937,2427.9,2427.5,4.11946]
[1730744036690,0.07888685,2427.8,2427.6,4.1192]
[1730744036996,0.07888685,2427.8,2427.1,7.90914]
[1730744036997,0.2937,2427.6,2427.1,7.90914]
[1730744037330,4.11957,2427.5,2427.0,5.01498655]
[1730744037546,4.19853945,2427.4,2427.0,9.13526655]
[1730744037827,0.07890945,2427.4,2427.1,4.12006]
[1730744038823,0.07890945,2427.4,2427.2,4.11985]
[1730744039126,4.41303,2427.6,2427.2,4.11985]
[1730744039333,0.07891448,2427.5,2427.3,4.1197]
[1730744039503,0.07891448,2427.5,2427.4,4.11961]
[1730744039703,4.41251,2427.9,2427.4,4.11961]
[1730744039886,4.19787951,2427.8,2427.4,4.11961]
[1730744040220,4.11913,2427.7,2427.3,4.899]
[1730744040437,4.11913,2427.7,2427.3,9.01871]
[1730744040812,0.07894968,2427.6,2427.4,4.11955]
[1730744041248,4.11933,2427.6,2427.2,4.11988]
[1730744041535,0.37264968,2427.5,2427.2,4.11994]
[1730744041746,4.49212968,2427.5,2427.1,4.12012]
[1730744041899,0.37264968,2427.5,2427.0,9.13518655]
[1730744042096,0.86303595,2427.5,2427.0,5.01498655]
[1730744042298,4.41384,2427.1,2427.0,5.01498655]
[1730744042607,0.37258934,2427.1,2427.0,5.01498655]
[1730744043005,0.07888934,2427.1,2427.0,5.01498655]
[1730744043342,4.11942,2427.6,2427.0,5.01498655]
[1730744043343,4.41309,2427.6,2427.0,9.13529655]
[1730744043504,0.07872599,2427.5,2427.0,10.53602421]
[1730744043703,0.07872599,2427.5,2427.0,6.41571421]
[1730744044015,4.19825599,2427.5,2427.0,6.41571421]
[1730744044212,4.19825599,2427.5,2427.0,5.01498655]
[1730744044628,4.11964,2427.4,2427.0,5.01498655]
[1730744044807,4.19825599,2427.5,2427.0,5.01498655]
[1730744045124,4.11953,2427.5,2427.0,5.01498655]
[1730744045436,0.07846599,2427.4,2427.1,0.13194451]
[1730744045737,0.07846599,2427.4,2427.0,5.01498655]
[1730744046107,4.19816599,2427.4,2427.1,0.1319442]
[1730744046448,4.19816599,2427.4,2427.0,5.22632578]
[1730744046655,4.11981,2427.3,2427.1,0.13206977]
[1730744046804,4.11981,2427.3,2427.0,5.01498655]
[1730744047128,0.07846599,2427.2,2427.1,0.13207354]
[1730744047324,4.11981,2427.3,2427.1,0.13207354]
[1730744047657,4.11981,2427.3,2427.0,5.01498655]
[1730744047964,0.07846599,2427.2,2427.1,0.1321538]
[1730744048162,4.11981,2427.3,2427.1,0.1321538]
[1730744048369,0.37216599,2427.2,2427.0,5.01498655]
[1730744048570,0.37216599,2427.2,2427.1,0.1322025]
[1730744049234,4.49226599,2427.2,2427.1,0.1322025]
[1730744051266,4.49226599,2427.2,2427.0,5.01498655]
[1730744051445,4.49226599,2427.2,2427.1,0.13217131]
[1730744051446,4.19856599,2427.2,2427.1,0.13217131]
[1730744052041,4.19856599,2427.2,2427.0,5.01498655]
[1730744052237,4.61842259,2427.2,2427.0,5.01498655]
[1730744052444,4.41384,2427.1,2427.0,5.01498655]
[1730744052639,4.41384,2427.1,2427.0,5.14714605]
[1730744052857,4.49233363,2427.1,2427.0,5.14714605]
[1730744053170,0.07849363,2427.1,2427.0,5.14714605]
[1730744054466,4.12002,2427.2,2427.0,5.14714605]
[1730744054774,4.19861353,2427.1,2427.0,5.01498655]
[1730744055067,4.19861353,2427.1,2427.0,5.14712587]
[1730744055864,0.07847353,2427.1,2427.0,5.14712587]
[1730744056058,4.19861353,2427.1,2427.0,5.14712587]
[1730744057327,5.03048088,2427.1,2427.0,5.14712587]
[1730744057766,5.32418088,2427.1,2427.0,5.14712587]
[1730744057941,5.32418088,2427.1,2427.0,5.01498655]
[1730744060343,4.49231353,2427.1,2427.0,5.01498655]
[1730744063076,8.07478539,2427.1,2427.0,5.01498655]
[1730744063573,4.12098,2426.7,2426.3,0.7589]
[1730744063772,4.121,2426.6,2426.4,0.34360709]
[1730744063936,4.19919635,2426.6,2426.5,0.13214487]
[1730744066248,4.19919635,2426.6,2426.3,0.7589]
[1730744066560,4.12116,2426.5,2426.4,0.13216489]
[1730744066931,4.19935635,2426.5,2426.4,0.13216489]
[1730744067137,4.12167,2426.2,2426.1,0.21145861]
[1730744067332,4.12167,2426.2,2426.1,0.13211502]
[1730744067333,4.19979346,2426.2,2426.1,0.13211502]
[1730744067584,4.12198,2426.1,2425.8,0.99065861]
[1730744067872,4.12201,2426.0,2425.9,0.13212631]
[1730744068058,4.200141,2426.0,2425.6,0.99065861]
[1730744068242,4.200141,2426.0,2425.7,0.13211938]
[1730744068442,4.12218,2425.9,2425.6,1.70283186]
[1730744068647,4.12218,2425.9,2425.7,0.13202896]
[1730744068970,0.07800526,2425.8,2425.6,5.82548186]
[1730744069277,4.12201,2426.0,2425.6,4.90185]
[1730744069431,0.07800526,2425.7,2425.6,4.90185]
[1730744069780,0.07800526,2425.7,2425.6,0.91117636]
[1730744069937,4.41589,2425.9,2425.6,0.91117636]
[1730744070137,0.07778642,2425.8,2425.6,0.91121998]
[1730744070337,0.07778642,2425.8,2425.6,0.7792]
[1730744070639,0.07778642,2425.8,2425.6,0.91114617]
[1730744070941,0.07778642,2425.8,2425.6,0.7792]
[1730744071254,0.07778642,2425.8,2425.6,4.90187]
[1730744071431,0.07778642,2425.8,2425.6,1.69486062]
[1730744071636,4.1221,2426.0,2425.6,1.69486062]
[1730744071841,0.07777636,2425.7,2425.6,1.69486062]
[1730744072060,4.1221,2426.0,2425.6,1.69486062]
[1730744072533,0.07777636,2425.9,2425.6,1.69486062]
[1730744074549,4.19995636,2425.9,2425.6,1.69486062]
[1730744075882,0.07777636,2425.9,2425.7,0.58176406]
[1730744076180,4.12175,2426.2,2425.8,4.12235]
[1730744076782,4.12175,2426.2,2425.7,4.70428406]
[1730744076980,4.12162,2426.3,2425.7,4.70428406]